[Event "ESTCC 65 2019"]
[Site "Mali Losinj"]
[Date "2019.09.23"]
[Round "6.12"]
[White "Illi, Hans-Joerg"]
[Black "Malmdin, Nils-Ake"]
[Result "0-1"]
[ECO "B08"]
[WhiteElo "1987"]
[BlackElo "2142"]
[Annotator "NA"]
[PlyCount "58"]
[EventDate "2019.09.18"]
[EventType "team-tourn"]
[EventCountry "CRO"]
[SourceTitle "playchess.com"]
[Source "ChessBase"]
[SourceQuality "1"]
[WhiteTeam "Switzerland"]
[BlackTeam "Sweden"]
[WhiteTeamCountry "SUI"]
[BlackTeamCountry "SWE"]
[TimeControl "40/5400+30:1800+30"]

1. d4 {[%emt 0:00:30]} g6 {[%emt 0:00:30]} 2. e4 {[%emt 0:00:30]} Bg7 {[%emt 0:00:30]} 3. Nc3 {[%emt 0:00:30]} d6 {[%emt 0:03:30]} 4. Nf3 {[%emt 0:06:30]} Nf6 {[%emt 0:01:30]} 5. Be2 {[%emt 0:11:30]} O-O {[%emt 0:02:30]} 6. O-O {[%emt 0:00:30]} Nc6 {[%emt 0:04:30]} 7. Bf4 {[%emt 0:11:30]} Bg4 {[%emt 0:06:30]} 8. Qd2 {[%emt 0:07:30]} Bxf3 {[%emt 0:24:30]} 9. Bxf3 {[%emt 0:01:30]} e5 {[%emt 0:02:30]} 10. Be3 {[%emt 0:16:30]} exd4 {[%emt 0:01:30]} 11. Bxd4 {[%emt 0:01:30]} Nxe4 {[%emt 0:00:30]} 12. Bxe4 {[%emt 0:00:30]} Nxd4 {[%emt 0:00:30]} 13. Bxb7 {[%emt 0:03:30]} Rb8 {[%emt 0:01:30]} 14. Bd5 {[%emt 0:01:30]} Qh4 {[%emt 0:28:33]} 15. Rab1 {[%emt 0:01:30]} c6 {[%emt 0:00:52]} 16. g3 {[%emt 0:03:30]} Qg4 {[%emt 0:01:16]} 17. Bg2 {[%emt 0:01:30]} d5 {[%emt 0:00:18]} 18. Nd1 {[%emt 0:09:02]} Rfe8 {[%emt 0:01:27]} 19. c3 {[%emt 0:01:41]} Nf3+ {[%emt 0:00:38]} 20. Bxf3 {[%emt 0:00:15]} Qxf3 {[%emt 0:00:02]} 21. Ne3 {[%emt 0:03:11]} Bh6 {[%emt 0:01:02]} 22. Rbe1 {[%emt 0:01:27]} f5 {[%emt 0:00:52]} 23. Qd1 {[%emt 0:00:42]} Rxe3 {[%emt 0:03:30]} 24. Rxe3 {[%emt 0:09:43]} Qxd1 {[%emt 0:00:12]} 25. Rxd1 {[%emt 0:00:06]} Bxe3 {[%emt 0:00:15]} 26. fxe3 {[%emt 0:00:02]} Rxb2 {[%emt 0:00:09]} 27. c4 {[%emt 0:00:18]} dxc4 {[%emt 0:00:36]} 28. Rc1 {[%emt 0:00:32]} Rxa2 {[%emt 0:00:27]} 29. Rxc4 {[%emt 0:00:04]} Ra6 {[%emt 0:00:19]} 0-1

[Event "ESTCC 65 2019"]
[Site "Mali Losinj"]
[Date "2019.09.23"]
[Round "6.13"]
[White "Carlsten, Peter"]
[Black "Lofgren, Claes"]
[Result "1-0"]
[ECO "B43"]
[WhiteElo "1986"]
[BlackElo "2059"]
[Annotator "NA"]
[PlyCount "67"]
[EventDate "2019.09.18"]
[EventType "team-tourn"]
[EventCountry "CRO"]
[SourceTitle "playchess.com"]
[Source "ChessBase"]
[SourceQuality "1"]
[WhiteTeam "Sweden"]
[BlackTeam "Denmark"]
[WhiteTeamCountry "SWE"]
[BlackTeamCountry "DEN"]
[TimeControl "40/5400+30:1800+30"]

1. e4 {[%emt 0:00:30]} c5 {[%emt 0:00:30]} 2. Nf3 {[%emt 0:00:00]} e6 {[%emt 0:00:00]} 3. d4 {[%emt 0:00:00]} cxd4 {[%emt 0:00:00]} 4. Nxd4 {[%emt 0:00:00]} a6 {[%emt 0:00:30]} 5. Nc3 {[%emt 0:00:00]} Qc7 {[%emt 0:00:30]} 6. Be2 {[%emt 0:00:30]} Nf6 {[%emt 0:00:30]} 7. O-O {[%emt 0:00:30]} b5 {[%emt 0:01:30]} 8. Bf3 {[%emt 0:04:30]} e5 {[%emt 0:07:30]} 9. Nf5 {[%emt 0:07:30]} b4 {[%emt 0:03:30]} 10. Nd5 {[%emt 0:00:30]} Nxd5 {[%emt 0:00:30]} 11. Qxd5 {[%emt 0:01:30]} Bb7 {[%emt 0:00:30]} 12. Qd3 {[%emt 0:04:30]} Nc6 {[%emt 0:11:30]} 13. Be3 {[%emt 0:04:30]} g6 {[%emt 0:14:30]} 14. Ng3 {[%emt 0:02:30]} Be7 {[%emt 0:05:30]} 15. Rfd1 {[%emt 0:15:30]} d6 {[%emt 0:01:30]} 16. Nf1 {[%emt 0:09:30]} O-O {[%emt 0:02:30]} 17. Bh6 {[%emt 0:01:30]} Rfd8 {[%emt 0:02:30]} 18. c3 {[%emt 0:02:30]} a5 {[%emt 0:03:30]} 19. Ne3 {[%emt 0:00:30]} Na7 {[%emt 0:07:30]} 20. Rac1 {[%emt 0:01:30]} Qb6 {[%emt 0:02:30]} 21. Be2 {[%emt 0:10:30]} Rac8 {[%emt 0:08:30]} 22. Nc4 {[%emt 0:07:30]} Qb5 {[%emt 0:08:14]} 23. Be3 {[%emt 0:00:30]} Nc6 {[%emt 0:05:38]} 24. Qc2 {[%emt 0:07:43]} Ba6 {[%emt 0:02:23]} 25. Bb6 {[%emt 0:03:26]} Nb8 {[%emt 0:06:53]} 26. Bxd8 {[%emt 0:00:41]} Bxd8 {[%emt 0:00:16]} 27. Nxd6 {[%emt 0:03:30]} Qxe2 {[%emt 0:00:21]} 28. Nxc8 {[%emt 0:00:18]} Bg5 {[%emt 0:00:32]} 29. Qxe2 {[%emt 0:05:19]} Bxe2 {[%emt 0:00:13]} 30. Re1 {[%emt 0:00:58]} Ba6 {[%emt 0:02:05]} 31. cxb4 {[%emt 0:00:30]} Bxc1 {[%emt 0:00:19]} 32. Rxc1 {[%emt 0:00:06]} axb4 {[%emt 0:00:05]} 33. Nb6 {[%emt 0:01:02]} Kg7 {[%emt 0:00:23]} 34. Nd5 {[%emt 0:03:25]} 1-0

[Event "ESTCC 65 2019"]
[Site "Mali Losinj"]
[Date "2019.09.23"]
[Round "6.14"]
[White "Nielsen, Jorgen Lovgren"]
[Black "Ahlstrom, Per"]
[Result "1-0"]
[ECO "B07"]
[WhiteElo "2052"]
[BlackElo "1838"]
[Annotator "NA"]
[PlyCount "72"]
[EventDate "2019.09.18"]
[EventType "team-tourn"]
[EventCountry "CRO"]
[SourceTitle "playchess.com"]
[Source "ChessBase"]
[SourceQuality "1"]
[WhiteTeam "Denmark"]
[BlackTeam "Sweden"]
[WhiteTeamCountry "DEN"]
[BlackTeamCountry "SWE"]
[TimeControl "40/5400+30:1800+30"]

1. e4 {[%emt 0:00:30]} d6 {[%emt 0:00:30]} 2. d4 {[%emt 0:00:00]} Nf6 {[%emt 0:00:00]} 3. Nc3 {[%emt 0:04:00]} g6 {[%emt 0:00:00]} 4. Bc4 {[%emt 0:01:30]} Bg7 {[%emt 0:01:30]} 5. Qe2 {[%emt 0:01:30]} Nc6 {[%emt 0:12:30]} 6. Nf3 {[%emt 0:05:30]} Bg4 {[%emt 0:01:30]} 7. Be3 {[%emt 0:01:30]} Bxf3 {[%emt 0:04:30]} 8. gxf3 {[%emt 0:01:30]} Nd7 {[%emt 0:07:30]} 9. O-O-O {[%emt 0:01:30]} a6 {[%emt 0:08:30]} 10. h4 {[%emt 0:02:30]} h5 {[%emt 0:02:30]} 11. f4 {[%emt 0:01:30]} Na5 {[%emt 0:02:30]} 12. Bd3 {[%emt 0:08:30]} b5 {[%emt 0:09:30]} 13. e5 {[%emt 0:02:30]} Nb6 {[%emt 0:13:30]} 14. f5 {[%emt 0:02:30]} gxf5 {[%emt 0:00:30]} 15. Bxf5 {[%emt 0:00:30]} e6 {[%emt 0:00:00]} 16. Be4 {[%emt 0:00:30]} d5 {[%emt 0:00:00]} 17. Bf3 {[%emt 0:00:30]} Nac4 {[%emt 0:03:30]} 18. Bg5 {[%emt 0:01:30]} Bh6 {[%emt 0:03:30]} 19. Rdg1 {[%emt 0:04:30]} Qe7 {[%emt 0:03:30]} 20. Bxh6 {[%emt 0:02:30]} Rxh6 {[%emt 0:01:30]} 21. Rg8+ {[%emt 0:00:30]} Kd7 {[%emt 0:00:30]} 22. Rg7 {[%emt 0:04:30]} Qb4 {[%emt 0:02:30]} 23. Nd1 {[%emt 0:02:30]} Rf8 {[%emt 0:02:14]} 24. Bxh5 {[%emt 0:07:30]} Qa5 {[%emt 0:05:29]} 25. Kb1 {[%emt 0:03:30]} Na4 {[%emt 0:08:10]} 26. Bxf7 {[%emt 0:06:30]} Ncxb2 {[%emt 0:04:54]} 27. Bxe6+ {[%emt 0:09:30]} Kc6 {[%emt 0:00:12]} 28. Bxd5+ {[%emt 0:00:30]} Kb6 {[%emt 0:00:05]} 29. Qg4 {[%emt 0:02:30]} Nxd1 {[%emt 0:00:43]} 30. Rg6+ {[%emt 0:00:30]} c6 {[%emt 0:00:23]} 31. Rxh6 {[%emt 0:02:30]} Ndc3+ {[%emt 0:00:35]} 32. Kc1 {[%emt 0:00:30]} Nxa2+ {[%emt 0:01:01]} 33. Bxa2 {[%emt 0:00:30]} Qc3 {[%emt 0:01:39]} 34. Qe4 {[%emt 0:07:25]} Qb2+ {[%emt 0:00:34]} 35. Kd2 {[%emt 0:00:25]} Qc3+ {[%emt 0:00:24]} 36. Ke2 {[%emt 0:00:00]} Qc4+ {[%emt 0:00:00]} 1-0

[Event "ESTCC 65 2019"]
[Site "Mali Losinj"]
[Date "2019.09.23"]
[Round "6.15"]
[White "Dalling, Peter"]
[Black "Nielsen, Preben Lovgren"]
[Result "0-1"]
[ECO "C50"]
[WhiteElo "1824"]
[BlackElo "2007"]
[Annotator "NA"]
[PlyCount "40"]
[EventDate "2019.09.18"]
[EventType "team-tourn"]
[EventCountry "CRO"]
[SourceTitle "playchess.com"]
[Source "ChessBase"]
[SourceQuality "1"]
[WhiteTeam "Sweden"]
[BlackTeam "Denmark"]
[WhiteTeamCountry "SWE"]
[BlackTeamCountry "DEN"]
[TimeControl "40/5400+30:1800+30"]

1. e4 {[%emt 0:00:30]} e5 {[%emt 0:00:30]} 2. Nf3 {[%emt 0:00:00]} Nc6 {[%emt 0:00:00]} 3. Bc4 {[%emt 0:01:00]} Nf6 {[%emt 0:05:00]} 4. d3 {[%emt 0:02:30]} Bc5 {[%emt 0:01:30]} 5. O-O {[%emt 0:01:30]} d6 {[%emt 0:00:30]} 6. h3 {[%emt 0:00:30]} h6 {[%emt 0:02:30]} 7. Nc3 {[%emt 0:00:30]} a6 {[%emt 0:02:30]} 8. a4 {[%emt 0:00:30]} g5 {[%emt 0:03:30]} 9. Bxg5 {[%emt 0:06:30]} hxg5 {[%emt 0:01:30]} 10. Nxg5 {[%emt 0:00:30]} Rf8 {[%emt 0:01:30]} 11. Kh1 {[%emt 0:04:30]} Nd4 {[%emt 0:12:30]} 12. Bxf7+ {[%emt 0:06:30]} Rxf7 {[%emt 0:02:30]} 13. Nxf7 {[%emt 0:00:30]} Kxf7 {[%emt 0:00:00]} 14. f4 {[%emt 0:00:00]} Bg4 {[%emt 0:10:00]} 15. Qd2 {[%emt 0:07:00]} Qh8 {[%emt 0:19:30]} 16. fxe5 {[%emt 0:04:30]} dxe5 {[%emt 0:00:30]} 17. Nd5 {[%emt 0:00:30]} Be7 {[%emt 0:02:30]} 18. Rf2 {[%emt 0:27:30]} Bxh3 {[%emt 0:18:00]} 19. Ne3 {[%emt 0:14:30]} Bxg2+ {[%emt 0:01:28]} 20. Kxg2 {[%emt 0:00:30]} Rg8+ {[%emt 0:00:08]} 0-1

[Event "ESTCC 65 2019"]
[Site "Mali Losinj"]
[Date "2019.09.23"]
[Round "6.16"]
[White "Fabrin, Morten"]
[Black "Palsson, Bertil"]
[Result "1/2-1/2"]
[ECO "A36"]
[WhiteElo "1998"]
[BlackElo "1784"]
[Annotator "NA"]
[PlyCount "93"]
[EventDate "2019.09.18"]
[EventType "team-tourn"]
[EventCountry "CRO"]
[SourceTitle "playchess.com"]
[Source "ChessBase"]
[SourceQuality "1"]
[WhiteTeam "Denmark"]
[BlackTeam "Sweden"]
[WhiteTeamCountry "DEN"]
[BlackTeamCountry "SWE"]
[TimeControl "40/5400+30:1800+30"]

1. c4 {[%emt 0:00:30]} c5 {[%emt 0:00:30]} 2. Nc3 {[%emt 0:00:00]} Nf6 {[%emt 0:00:30]} 3. g3 {[%emt 0:00:00]} g6 {[%emt 0:00:00]} 4. Bg2 {[%emt 0:00:30]} Bg7 {[%emt 0:00:00]} 5. e3 {[%emt 0:00:30]} e5 {[%emt 0:03:30]} 6. Nge2 {[%emt 0:00:30]} O-O {[%emt 0:01:30]} 7. O-O {[%emt 0:00:30]} Nc6 {[%emt 0:01:30]} 8. Rb1 {[%emt 0:01:30]} d6 {[%emt 0:02:30]} 9. d3 {[%emt 0:00:30]} a6 {[%emt 0:07:30]} 10. a3 {[%emt 0:00:30]} Qc7 {[%emt 0:01:30]} 11. b4 {[%emt 0:01:30]} Rb8 {[%emt 0:04:30]} 12. b5 {[%emt 0:00:30]} axb5 {[%emt 0:01:30]} 13. Rxb5 {[%emt 0:02:30]} Bd7 {[%emt 0:04:30]} 14. Rb1 {[%emt 0:01:30]} Na7 {[%emt 0:00:30]} 15. a4 {[%emt 0:02:30]} Bc6 {[%emt 0:00:30]} 16. Nb5 {[%emt 0:04:30]} Nxb5 {[%emt 0:01:30]} 17. axb5 {[%emt 0:00:30]} Bxg2 {[%emt 0:00:30]} 18. Kxg2 {[%emt 0:00:30]} Ra8 {[%emt 0:02:30]} 19. Nc3 {[%emt 0:00:30]} b6 {[%emt 0:02:30]} 20. Qf3 {[%emt 0:01:30]} Ra7 {[%emt 0:00:30]} 21. Bb2 {[%emt 0:00:30]} Rfa8 {[%emt 0:01:30]} 22. Nd5 {[%emt 0:03:30]} Qb7 {[%emt 0:00:30]} 23. Nxf6+ {[%emt 0:07:30]} Bxf6 {[%emt 0:00:30]} 24. e4 {[%emt 0:00:30]} Bg7 {[%emt 0:00:30]} 25. Qg4 {[%emt 0:01:30]} Qd7 {[%emt 0:01:30]} 26. Qg5 {[%emt 0:01:30]} Qe7 {[%emt 0:00:30]} 27. Qe3 {[%emt 0:00:30]} Ra2 {[%emt 0:02:30]} 28. Ra1 {[%emt 0:04:30]} Rxa1 {[%emt 0:05:30]} 29. Rxa1 {[%emt 0:00:30]} Rxa1 {[%emt 0:00:30]} 30. Bxa1 {[%emt 0:00:30]} h5 {[%emt 0:04:30]} 31. Qd2 {[%emt 0:01:30]} Qa7 {[%emt 0:01:30]} 32. Qb2 {[%emt 0:01:30]} Qa4 {[%emt 0:01:30]} 33. h4 {[%emt 0:01:30]} Bh6 {[%emt 0:02:30]} 34. Qb1 {[%emt 0:01:30]} Qa5 {[%emt 0:01:30]} 35. Qd1 {[%emt 0:01:30]} Qd2 {[%emt 0:00:30]} 36. Qxd2 {[%emt 0:01:30]} Bxd2 {[%emt 0:00:30]} 37. f3 {[%emt 0:00:30]} f6 {[%emt 0:05:30]} 38. Kf2 {[%emt 0:00:30]} Kf7 {[%emt 0:02:30]} 39. Ke2 {[%emt 0:00:30]} Bb4 {[%emt 0:00:30]} 40. Bb2 {[%emt 0:00:30]} g5 {[%emt 0:02:30]} 41. Bc1 {[%emt 0:31:30]} gxh4 {[%emt 0:34:30]} 42. gxh4 {[%emt 0:00:00]} Kg6 {[%emt 0:00:00]} 43. Bd2 {[%emt 0:03:00]} Bxd2 {[%emt 0:00:00]} 44. Kxd2 {[%emt 0:00:30]} Kh6 {[%emt 0:00:30]} 45. Ke3 {[%emt 0:00:30]} Kg6 {[%emt 0:00:30]} 46. f4 {[%emt 0:00:30]} Kh6 {[%emt 0:00:30]} 47. f5 {[%emt 0:00:30]} 1/2-1/2

[Event "ESTCC 65 2019"]
[Site "Mali Losinj"]
[Date "2019.09.23"]
[Round "6.17"]
[White "Kolbak, Jens"]
[Black "Rooze, Jan"]
[Result "0-1"]
[ECO "D40"]
[WhiteElo "2173"]
[BlackElo "2281"]
[Annotator "NA"]
[PlyCount "68"]
[EventDate "2019.09.18"]
[EventType "team-tourn"]
[EventCountry "CRO"]
[SourceTitle "playchess.com"]
[Source "ChessBase"]
[SourceQuality "1"]
[WhiteTeam "Denmark"]
[BlackTeam "Belgium"]
[WhiteTeamCountry "DEN"]
[BlackTeamCountry "BEL"]
[TimeControl "40/5400+30:1800+30"]

1. d4 {[%emt 0:00:30]} Nf6 {[%emt 0:00:30]} 2. c4 {[%emt 0:00:00]} e6 {[%emt 0:00:00]} 3. Nf3 {[%emt 0:00:00]} c5 {[%emt 0:00:00]} 4. e3 {[%emt 0:02:30]} a6 {[%emt 0:00:30]} 5. Nc3 {[%emt 0:01:30]} d5 {[%emt 0:00:30]} 6. Be2 {[%emt 0:01:30]} dxc4 {[%emt 0:08:30]} 7. Bxc4 {[%emt 0:00:30]} Nbd7 {[%emt 0:02:30]} 8. dxc5 {[%emt 0:10:30]} Bxc5 {[%emt 0:00:30]} 9. a4 {[%emt 0:06:30]} Qc7 {[%emt 0:03:30]} 10. Qe2 {[%emt 0:01:30]} b6 {[%emt 0:02:30]} 11. O-O {[%emt 0:00:30]} Bb7 {[%emt 0:00:30]} 12. Bd2 {[%emt 0:12:30]} O-O {[%emt 0:03:30]} 13. Bb3 {[%emt 0:04:30]} Rad8 {[%emt 0:05:30]} 14. e4 {[%emt 0:04:30]} h6 {[%emt 0:09:30]} 15. Rad1 {[%emt 0:07:30]} Nh5 {[%emt 0:08:30]} 16. Ne1 {[%emt 0:04:30]} Nf4 {[%emt 0:02:30]} 17. Bxf4 {[%emt 0:00:30]} Qxf4 {[%emt 0:00:00]} 18. Nd3 {[%emt 0:00:30]} Qg5 {[%emt 0:05:00]} 19. Nxc5 {[%emt 0:00:00]} Nxc5 {[%emt 0:00:30]} 20. Bc2 {[%emt 0:00:00]} a5 {[%emt 0:00:30]} 21. f4 {[%emt 0:05:30]} Qe7 {[%emt 0:00:30]} 22. e5 {[%emt 0:02:30]} Ba6 {[%emt 0:08:30]} 23. Nb5 {[%emt 0:00:30]} Rxd1 {[%emt 0:00:30]} 24. Rxd1 {[%emt 0:00:30]} Rd8 {[%emt 0:00:30]} 25. Qc4 {[%emt 0:09:30]} Rxd1+ {[%emt 0:02:30]} 26. Bxd1 {[%emt 0:00:00]} Qd7 {[%emt 0:00:30]} 27. Be2 {[%emt 0:07:52]} Qd2 {[%emt 0:02:30]} 28. Bf1 {[%emt 0:05:12]} Bxb5 {[%emt 0:07:30]} 29. Qxb5 {[%emt 0:01:03]} Qe3+ {[%emt 0:00:30]} 30. Kh1 {[%emt 0:00:07]} Qxf4 {[%emt 0:00:30]} 31. h3 {[%emt 0:00:50]} g6 {[%emt 0:00:30]} 32. Kg1 {[%emt 0:01:07]} Qd4+ {[%emt 0:04:30]} 33. Kh1 {[%emt 0:00:07]} Nd7 {[%emt 0:02:30]} 34. b3 {[%emt 0:01:11]} Nxe5 {[%emt 0:00:30]} 0-1

[Event "ESTCC 65 2019"]
[Site "Mali Losinj"]
[Date "2019.09.23"]
[Round "6.18"]
[White "Van Herck, Marcel"]
[Black "Olesen, Poul Erik Norgaard"]
[Result "1-0"]
[ECO "E73"]
[WhiteElo "2088"]
[BlackElo "1996"]
[Annotator "NA"]
[PlyCount "53"]
[EventDate "2019.09.18"]
[EventType "team-tourn"]
[EventCountry "CRO"]
[SourceTitle "playchess.com"]
[Source "ChessBase"]
[SourceQuality "1"]
[WhiteTeam "Belgium"]
[BlackTeam "Denmark"]
[WhiteTeamCountry "BEL"]
[BlackTeamCountry "DEN"]
[TimeControl "40/5400+30:1800+30"]

1. d4 {[%emt 0:07:30]} g6 {[%emt 0:00:30]} 2. c4 {[%emt 0:00:30]} Bg7 {[%emt 0:00:30]} 3. Nc3 {[%emt 0:00:00]} Nf6 {[%emt 0:00:30]} 4. e4 {[%emt 0:00:00]} d6 {[%emt 0:00:30]} 5. Be2 {[%emt 0:03:30]} O-O {[%emt 0:00:30]} 6. Bg5 {[%emt 0:00:30]} h6 {[%emt 0:02:30]} 7. Be3 {[%emt 0:00:30]} e5 {[%emt 0:02:30]} 8. d5 {[%emt 0:01:30]} a5 {[%emt 0:06:30]} 9. Qd2 {[%emt 0:02:30]} Kh7 {[%emt 0:00:30]} 10. f3 {[%emt 0:02:30]} Na6 {[%emt 0:05:30]} 11. g4 {[%emt 0:17:30]} Nc5 {[%emt 0:09:30]} 12. h4 {[%emt 0:04:30]} Ng8 {[%emt 0:03:30]} 13. h5 {[%emt 0:00:30]} g5 {[%emt 0:06:30]} 14. Bd1 {[%emt 0:02:30]} Bd7 {[%emt 0:00:30]} 15. Nge2 {[%emt 0:04:30]} Bf6 {[%emt 0:03:30]} 16. Ng3 {[%emt 0:01:30]} Ne7 {[%emt 0:07:30]} 17. Bc2 {[%emt 0:01:30]} Nc8 {[%emt 0:06:30]} 18. b3 {[%emt 0:03:30]} Nb6 {[%emt 0:01:30]} 19. Qe2 {[%emt 0:00:30]} Be7 {[%emt 0:07:30]} 20. O-O {[%emt 0:00:30]} Qc8 {[%emt 0:01:30]} 21. a3 {[%emt 0:03:30]} Na6 {[%emt 0:03:30]} 22. Nf5 {[%emt 0:12:30]} Re8 {[%emt 0:05:30]} 23. Rfb1 {[%emt 0:01:30]} c5 {[%emt 0:01:30]} 24. dxc6 {[%emt 0:05:30]} Qxc6 {[%emt 0:00:30]} 25. Nxe7 {[%emt 0:01:30]} Rxe7 {[%emt 0:00:00]} 26. Nd5 {[%emt 0:00:30]} Nxd5 {[%emt 0:01:00]} 27. exd5+ {[%emt 0:00:30]} 1-0

[Event "ESTCC 65 2019"]
[Site "Mali Losinj"]
[Date "2019.09.23"]
[Round "6.19"]
[White "Jorgensen, Arne Bjorn"]
[Black "Van de Wynkele, Herman"]
[Result "1/2-1/2"]
[ECO "A57"]
[WhiteElo "1996"]
[BlackElo "2085"]
[Annotator "NA"]
[PlyCount "93"]
[EventDate "2019.09.18"]
[EventType "team-tourn"]
[EventCountry "CRO"]
[SourceTitle "playchess.com"]
[Source "ChessBase"]
[SourceQuality "1"]
[WhiteTeam "Denmark"]
[BlackTeam "Belgium"]
[WhiteTeamCountry "DEN"]
[BlackTeamCountry "BEL"]
[TimeControl "40/5400+30:1800+30"]

1. d4 {[%emt 0:00:30]} Nf6 {[%emt 0:00:30]} 2. c4 {[%emt 0:00:00]} c5 {[%emt 0:00:00]} 3. d5 {[%emt 0:00:00]} b5 {[%emt 0:00:00]} 4. Qc2 {[%emt 0:00:30]} Na6 {[%emt 0:00:30]} 5. a3 {[%emt 0:00:30]} Nc7 {[%emt 0:08:30]} 6. e4 {[%emt 0:00:30]} bxc4 {[%emt 0:00:00]} 7. Bxc4 {[%emt 0:00:30]} e6 {[%emt 0:00:00]} 8. Nc3 {[%emt 0:03:30]} Bb7 {[%emt 0:01:30]} 9. Qd3 {[%emt 0:08:30]} exd5 {[%emt 0:03:30]} 10. exd5 {[%emt 0:03:30]} Bd6 {[%emt 0:00:30]} 11. Nf3 {[%emt 0:01:30]} Qe7+ {[%emt 0:06:30]} 12. Be3 {[%emt 0:02:30]} O-O {[%emt 0:00:30]} 13. O-O {[%emt 0:02:30]} Ng4 {[%emt 0:13:30]} 14. Rfe1 {[%emt 0:08:30]} f5 {[%emt 0:02:30]} 15. Bf4 {[%emt 0:10:30]} Qf6 {[%emt 0:00:30]} 16. Bxd6 {[%emt 0:01:30]} Qxd6 {[%emt 0:00:30]} 17. Re2 {[%emt 0:05:30]} g6 {[%emt 0:08:30]} 18. Rd1 {[%emt 0:07:30]} Rae8 {[%emt 0:04:30]} 19. Rde1 {[%emt 0:02:30]} Rxe2 {[%emt 0:01:30]} 20. Rxe2 {[%emt 0:00:30]} Kg7 {[%emt 0:00:00]} 21. Re1 {[%emt 0:12:30]} Re8 {[%emt 0:02:00]} 22. Rxe8 {[%emt 0:06:30]} Nxe8 {[%emt 0:00:30]} 23. Nb5 {[%emt 0:01:36]} Qf6 {[%emt 0:01:30]} 24. h3 {[%emt 0:02:34]} Ne5 {[%emt 0:06:30]} 25. Nxe5 {[%emt 0:03:16]} Qxe5 {[%emt 0:00:00]} 26. Nxa7 {[%emt 0:03:25]} Nd6 {[%emt 0:03:00]} 27. Nb5 {[%emt 0:02:03]} Nxc4 {[%emt 0:10:30]} 28. Qxc4 {[%emt 0:00:08]} Qxd5 {[%emt 0:01:30]} 29. Qxd5 {[%emt 0:01:13]} Bxd5 {[%emt 0:00:00]} 30. f4 {[%emt 0:00:38]} Kf6 {[%emt 0:01:00]} 31. Kf2 {[%emt 0:00:37]} Ke7 {[%emt 0:01:30]} 32. g3 {[%emt 0:00:19]} Bc6 {[%emt 0:01:30]} 33. Nc3 {[%emt 0:01:41]} d5 {[%emt 0:00:00]} 34. Ne2 {[%emt 0:01:27]} Kd6 {[%emt 0:00:00]} 35. Ng1 {[%emt 0:00:23]} d4 {[%emt 0:00:30]} 36. Nf3 {[%emt 0:00:34]} Bxf3 {[%emt 0:15:17]} 37. Kxf3 {[%emt 0:00:19]} c4 {[%emt 0:05:05]} 38. Ke2 {[%emt 0:00:31]} Kd5 {[%emt 0:00:30]} 39. Kd2 {[%emt 0:00:49]} Ke4 {[%emt 0:00:18]} 40. h4 {[%emt 0:01:50]} Kf3 {[%emt 0:00:00]} 41. Kd1 {[%emt 0:09:07]} Ke4 {[%emt 0:04:50]} 42. Kd2 {[%emt 0:00:30]} Kd5 {[%emt 0:00:30]} 43. Kc2 {[%emt 0:01:30]} Ke4 {[%emt 0:02:30]} 44. Kd2 {[%emt 0:00:30]} d3 {[%emt 0:00:30]} 45. a4 {[%emt 0:04:30]} Kd4 {[%emt 0:01:30]} 46. a5 {[%emt 0:00:30]} Kc5 {[%emt 0:00:30]} 47. b4+ {[%emt 0:01:30]} 1/2-1/2

[Event "ESTCC 65 2019"]
[Site "Mali Losinj"]
[Date "2019.09.23"]
[Round "6.20"]
[White "Schrickx, Frank"]
[Black "Andersson, Finn"]
[Result "1-0"]
[ECO "B22"]
[WhiteElo "1813"]
[BlackElo "1771"]
[Annotator "NA"]
[PlyCount "85"]
[EventDate "2019.09.18"]
[EventType "team-tourn"]
[EventCountry "CRO"]
[SourceTitle "playchess.com"]
[Source "ChessBase"]
[SourceQuality "1"]
[WhiteTeam "Belgium"]
[BlackTeam "Denmark"]
[WhiteTeamCountry "BEL"]
[BlackTeamCountry "DEN"]
[TimeControl "40/5400+30:1800+30"]

1. e4 {[%emt 0:00:30]} c5 {[%emt 0:00:30]} 2. c3 {[%emt 0:00:00]} Nf6 {[%emt 0:00:00]} 3. e5 {[%emt 0:00:00]} Nd5 {[%emt 0:00:00]} 4. d4 {[%emt 0:00:30]} cxd4 {[%emt 0:01:30]} 5. cxd4 {[%emt 0:00:00]} Nc6 {[%emt 0:00:00]} 6. Nf3 {[%emt 0:02:00]} d6 {[%emt 0:00:00]} 7. Bc4 {[%emt 0:02:30]} Nb6 {[%emt 0:01:30]} 8. Bb5 {[%emt 0:01:30]} dxe5 {[%emt 0:00:30]} 9. Nxe5 {[%emt 0:00:30]} Bd7 {[%emt 0:00:00]} 10. Nxd7 {[%emt 0:03:30]} Qxd7 {[%emt 0:00:00]} 11. O-O {[%emt 0:02:30]} a6 {[%emt 0:02:30]} 12. Bxc6 {[%emt 0:00:30]} Qxc6 {[%emt 0:00:30]} 13. Nc3 {[%emt 0:01:30]} e6 {[%emt 0:01:30]} 14. Be3 {[%emt 0:01:30]} Rd8 {[%emt 0:03:30]} 15. Qb3 {[%emt 0:02:30]} Be7 {[%emt 0:09:30]} 16. Rac1 {[%emt 0:01:30]} O-O {[%emt 0:05:30]} 17. Ne2 {[%emt 0:02:30]} Qd6 {[%emt 0:01:30]} 18. Bf4 {[%emt 0:01:30]} Qb4 {[%emt 0:13:30]} 19. Qxb4 {[%emt 0:03:30]} Bxb4 {[%emt 0:00:00]} 20. Bc7 {[%emt 0:00:30]} Nd5 {[%emt 0:02:00]} 21. Bxd8 {[%emt 0:00:30]} Rxd8 {[%emt 0:00:30]} 22. Rfd1 {[%emt 0:03:30]} Ba5 {[%emt 0:01:30]} 23. g3 {[%emt 0:01:30]} Bb6 {[%emt 0:01:30]} 24. Nc3 {[%emt 0:02:30]} Ne7 {[%emt 0:00:00]} 25. Ne2 {[%emt 0:00:30]} Kf8 {[%emt 0:04:00]} 26. Kg2 {[%emt 0:02:30]} Ke8 {[%emt 0:03:30]} 27. a3 {[%emt 0:09:30]} Rd7 {[%emt 0:04:30]} 28. Kf1 {[%emt 0:00:30]} Kd8 {[%emt 0:00:30]} 29. Ke1 {[%emt 0:00:30]} f6 {[%emt 0:05:30]} 30. Nf4 {[%emt 0:03:30]} Rd6 {[%emt 0:00:00]} 31. Nh5 {[%emt 0:03:30]} Nf5 {[%emt 0:01:00]} 32. g4 {[%emt 0:03:30]} Nxd4 {[%emt 0:02:30]} 33. Nxg7 {[%emt 0:01:30]} Rd5 {[%emt 0:03:30]} 34. Kf1 {[%emt 0:04:30]} Ke7 {[%emt 0:10:30]} 35. h3 {[%emt 0:00:30]} Rb5 {[%emt 0:06:18]} 36. b4 {[%emt 0:04:30]} a5 {[%emt 0:02:52]} 37. Rc4 {[%emt 0:01:30]} Nc6 {[%emt 0:01:02]} 38. Re1 {[%emt 0:00:30]} Ne5 {[%emt 0:05:11]} 39. Rce4 {[%emt 0:03:30]} axb4 {[%emt 0:04:30]} 40. axb4 {[%emt 0:00:30]} Rd5 {[%emt 0:03:16]} 41. f4 {[%emt 0:36:30]} Ng6 {[%emt 0:31:24]} 42. Rxe6+ {[%emt 0:01:30]} Kf8 {[%emt 0:00:15]} 43. Rxb6 {[%emt 0:00:30]} 1-0